Cogmind - Beta 13 @@@ ROGUE MODE // 2024.06.04 @ 19:43:04 Player: CanadianCogs Result: Destroyed by as-78089 with Assembled Heavy Rifle Performance ------------- Evolutions (0) 0 Regions Visited (2) 400 Robots Destroyed (14) 70 Value Destroyed (289) 289 Prototype IDs (0) 0 Alien Tech Used (0) 0 Bonus (0) 0 TOTAL SCORE: 759 Bonus ------- None Cogmind --------- Core Integrity 0/250 Matter 300/300 Energy 94/100 System Corruption 0% Temperature Cool (0) Movement Core (700) Ox13 Location -10/Mines Parts ------- > --- POWER (1) -------- (None) > --- PROPULSION (2) --- (None) > --- UTILITY (2) ------ Improved Heat Sink High-capacity Storage Unit > --- WEAPON (2) ------- Small Laser > --- INVENTORY (20) --- Compact Wheel Compact Wheel Hover Unit Hover Unit Hover Unit Hover Unit Hover Unit Heat Sink Heat Sink Signal Interpreter Signal Interpreter Signal Interpreter Signal Interpreter Hacking Suite Beam Cannon Beam Cannon Grenade Launcher Peak State ------------ > --- POWER ------------ Ion Engine > --- PROPULSION ------- Compact Wheel > --- UTILITY ---------- Improved Heat Sink High-capacity Storage Unit > --- WEAPON ----------- Small Laser Small Laser > --- INVENTORY -------- Compact Wheel Compact Wheel Compact Wheel Hover Unit Hover Unit Hover Unit Hover Unit Hover Unit Heat Sink Heat Sink Signal Interpreter Signal Interpreter Signal Interpreter Signal Interpreter Hacking Suite Small Laser Beam Cannon Beam Cannon Grenade Launcher [Rating: 10] Favorites ----------- Power Ion Engine Engine Ion Engine Propulsion Compact Wheel Leg Aluminum Leg Wheel Compact Wheel Utility High-capacity Storage Unit Device Seismic Detector Storage High-capacity Storage Unit Weapon Small Laser Energy Gun Small Laser Build | -11 -10 -10 ------- Run | Yrd Mat Min Slots Evolved . | . . . Power . | . . . Propulsion . | . . . Utility . | . . . Weapon . | . . . Parts Attached 18 | 6 11 1 Power 1 | 1 . . Engine 1 | 1 . . Core . | . . . Reactor . | . . . Propulsion 8 | 2 5 1 Treads . | . . . Leg 3 | . 3 . Wheel 5 | 2 2 1 Hover . | . . . Flight . | . . . Utility 5 | 1 4 . Device 3 | . 3 . Storage 2 | 1 1 . Processor . | . . . Hackware . | . . . Protection . | . . . Artifact . | . . . Weapon 4 | 2 2 . Energy Gun 4 | 2 2 . Energy Cannon . | . . . Ballistic Gun . | . . . Ballistic Cannon . | . . . Launcher . | . . . Special Weapon . | . . . Impact Weapon . | . . . Slashing Weapon . | . . . Piercing Weapon . | . . . Special Melee Weapon . | . . . Unidentified Prototypes . | . . . Parts Lost 8 | . 5 3 Power 1 | . 1 . Propulsion 3 | . 1 2 Utility 1 | . 1 . Weapon 3 | . 2 1 Highest Loss Streak 4 | . 4 4 To Critical Strikes . | . . . Average Slot Usage (%) 94 | . 95 71 Engine 13 | . 13 . Wheel 24 | . 24 18 Device 12 | . 12 14 Storage 14 | . 14 14 Energy Gun 27 | . 28 23 Naked Turns . | . . . Heaviest Build 48 | 12 48 43 Greatest Support 32 | 32 32 32 Greatest Overweight (x) 2 | . 2 2 Average Overweight (x) . | . . 1 Largest Inventory Capacity 20 | 8 20 20 Average Capacity 14 | 7 15 20 Most Carried 20 | 5 20 17 Average Carried 11 | 1 11 17 Final Capacity 20 | 8 20 20 Final Carried 18 | . 18 17 Class Distribution -------------------- 100% | Mutant Dominant Class ---------------- Mutant | -10/Materials Mutant | -10/Mines Resources | -11 -10 -10 ----------- Run | Yrd Mat Min Matter Collected 360 | 196 164 . Remotely . | . . . Salvage Created 615 | 59 529 27 Parts 34 | 3 31 . Haulers Intercepted 1 | . 1 . Recyclers Shooed . | . . . Parts Field Recycled . | . . . Retrieved Matter . | . . . Parts Self-Destructed . | . . . Prevented . | . . . Kills | -11 -10 -10 ------- Run | Yrd Mat Min Combat Hostiles Destroyed 10 | . 8 2 Guns 10 | . 8 2 Classes Destroyed 7 | 1 5 1 Hauler 1 | . 1 . Recycler 3 | 1 2 . Operator 1 | . 1 . Watcher 1 | . 1 . Swarmer 2 | . 2 . Grunt 6 | . 6 . Assembled 2 | . . 2 Best Kill Streak 7 | 1 7 2 Combat Bots Only 4 | . 4 2 Max Kills in Single Turn 1 | 1 1 1 Gunslinging . | . . . Exploded . | . . . Melee . | . . . Uniques/NPCs Destroyed . | . . . Combat | -11 -10 -10 -------- Run | Yrd Mat Min Hostile Shots Fired 99 | . 68 31 Missed 32 | . 23 9 Damage Taken 866 | . 537 329 Core 256 | . 88 168 Absorbed by Shields . | . . . Core Remaining (%) 100 | 100 . . Volleys Fired 65 | 2 52 11 Largest 2 | 2 2 2 Hottest 80 | 80 80 80 Shots Fired 121 | 4 104 13 Gun 121 | 4 104 13 Cannon . | . . . Launcher . | . . . Special . | . . . Kinetic . | . . . Thermal 121 | 4 104 13 Explosive . | . . . Electromagnetic . | . . . Robot Hit Streak 12 | 1 12 3 Robot Miss Streak 4 | 2 4 2 Penetration Max . | . . . Secondary Targets . | . . . Shots Hit Robots 78 | 2 69 7 Core Hits 36 | 2 30 4 Critical Kills . | . . . Critical Parts Destroyed . | . . . Critical Strikes . | . . . Melee Attacks . | . . . Impact . | . . . Slashing . | . . . Piercing . | . . . Sneak Attacks . | . . . Combat Hostiles . | . . . Follow-up Attacks . | . . . Damage Inflicted 930 | 24 810 96 Guns 891 | 24 789 78 Cannons . | . . . Explosions . | . . . Melee . | . . . Ramming 39 | . 21 18 Kinetic . | . . . Thermal 891 | 24 789 78 Explosive . | . . . Electromagnetic . | . . . Impact . | . . . Slashing . | . . . Piercing . | . . . Highest Corruption . | . . . Average Corruption . | . . . Corruption Purged . | . . . Corruption Blocked . | . . . Overload Shots . | . . . Overflow Damage . | . . . Projectiles . | . . . Explosions . | . . . Melee . | . . . Knockbacks . | . . . Impact . | . . . Kinetic . | . . . Secondary . | . . . Self-Inflicted Damage 19 | . 10 9 Shots . | . . . Rammed 2 | . 1 1 Targets Rammed 2 | . 1 1 Kicked . | . . . Crushed . | . . . Highest Temperature 234 | 36 234 7 Average Temperature 79 | 20 85 4 Received Heat Transfer 346 | . 246 100 Effects 1 | . 1 . Energy Bleed 1 | . 1 . Siege Activations . | . . . Robots Corrupted . | . . . Combat Hostiles . | . . . Parts Fried . | . . . Impact Corruptions . | . . . Robots Melted . | . . . Combat Hostiles . | . . . Parts Melted 5 | . 5 . Heat Transferred 2000 | 50 1775 175 Parts Sabotaged . | . . . Parts Stolen . | . . . Parts Stripped . | . . . Power Chain Reactions . | . . . Alert | -11 -10 -10 ------- Run | Yrd Mat Min Peak Influence 221 | 5 221 57 Initial 57 | . 3 57 Average 68 | 1 73 43 Maximum Alert Level 1 | . 1 . Low Security (%) 98 | 100 97 100 Level 1 1 | . 2 . Level 2 . | . . . Level 3 . | . . . Level 4 . | . . . Level 5 . | . . . High Security . | . . . Max Security . | . . . Squads Dispatched 4 | . 4 . Investigation 2 | . 2 . Extermination . | . . . Reinforcement 2 | . 2 . Assault . | . . . Garrison . | . . . Intercept . | . . . Searches Triggered . | . . . Construction Impeded . | . . . Haulers Reinforced . | . . . Active Scanning Responses . | . . . Cargo Convoy Interrupts . | . . . Stealth | -11 -10 -10 --------- Run | Yrd Mat Min Distress Signals 3 | . 3 . Communications Jammed . | . . . Distress Signals . | . . . Times Spotted 47 | . 29 18 Peak Tracking Total 20 | . 6 20 Tactical Retreats 2 | . 2 . Traps | -11 -10 -10 ------- Run | Yrd Mat Min Traps Triggered 2 | . 2 . Indirectly . | . . . Trap Hack Attempts . | . . . Triggered . | . . . Disarmed . | . . . Reprogrammed . | . . . Reused . | . . . Traps Extracted . | . . . Installed . | . . . Triggered . | . . . Machines | -11 -10 -10 ---------- Run | Yrd Mat Min Machines Disabled . | . . . Max in Single Turn . | . . . Machines Repaired . | . . . Machines Dismantled . | . . . Machines Sabotaged . | . . . Overloaded Fab Kills . | . . . Hacking | -11 -10 -10 --------- Run | Yrd Mat Min Machines Accessed 4 | . 4 . Terminals 3 | . 3 . Fabricators . | . . . Repair Stations . | . . . Recycling Units 1 | . 1 . Scanalyzers . | . . . Garrison Access . | . . . Total Hacks 8 | . 8 . Successful 7 | . 7 . Failed 1 | . 1 . Catastrophic . | . . . Database Lockouts . | . . . Manual 7 | . 7 . Terminals 4 | . 4 . Fabricators . | . . . Repair Stations . | . . . Recycling Units 4 | . 4 . Scanalyzers . | . . . Garrison Access . | . . . Terminal Hacks . | . . . Fabricator Hacks . | . . . Repair Station Hacks . | . . . Recycling Unit Hacks 1 | . 1 . Retrieve Components 1 | . 1 . Scanalyzer . | . . . Garrison Access Hacks . | . . . Unauthorized Hacks 6 | . 6 . Terminals 3 | . 3 . Botnet 3 | . 3 . Fabricators . | . . . Repair Stations . | . . . Recycling Units 3 | . 3 . Reject 1 | . 1 . Mask 1 | . 1 . Tunnel 1 | . 1 . Scanalyzers . | . . . Garrison Access . | . . . Data Cores Recovered . | . . . Used . | . . . Hacking Detections 3 | . 3 . Full Trace Events . | . . . Feedback Events . | . . . Feedback Blocked . | . . . Robot Schematics Acquired . | . . . Robots Built . | . . . Authchips . | . . . Time . | . . . Total Robot Build Rating . | . . . Part Schematics Acquired . | . . . Parts Built . | . . . Authchips . | . . . Time . | . . . Total Part Build Rating . | . . . Parts Repaired . | . . . Time . | . . . Parts Recycled . | . . . Recycled Matter . | . . . Retrieved Matter . | . . . Retrieved Components . | . . . Parts Scanalyzed . | . . . Part Schematics Acquired . | . . . Parts Damaged . | . . . Bothacking | -11 -10 -10 ------------ Run | Yrd Mat Min Used RIF Installer . | . . . Robots Hacked . | . . . Non-combat . | . . . Combat . | . . . Robot Hacks Applied . | . . . Relay Couplers Released . | . . . Fabnet Peak Effective % . | . . . Robots Rewired . | . . . Allies Hacked . | . . . Hacks Repelled . | . . . Allies | -11 -10 -10 -------- Run | Yrd Mat Min Total Allies . | . . . Largest Group . | . . . Highest-Rated Group . | . . . Highest-Rated Ally . | . . . Total Orders . | . . . Ally Attacks . | . . . Total Damage . | . . . Kills . | . . . Allies Corrupted . | . . . Allies Melted . | . . . Intel | -11 -10 -10 ------- Run | Yrd Mat Min Robot Analysis Total . | . . . Derelict Logs Recovered . | . . . Drone Launches . | . . . Drone Recoveries . | . . . Exploration | -11 -10 -10 ------------- Run | Yrd Mat Min Turns Passed 1008 | 55 917 36 Spaces Moved 491 | 41 441 9 Core 16 | 16 . . Treads . | . . . Legs . | . . . Wheels 475 | 25 441 9 Hover . | . . . Flight . | . . . Fastest Speed 50 | 50 100 115 Average Speed 110 | 80 112 118 Slowest Speed 130 | 100 130 130 Overloaded Moves . | . . . Propulsion Burnouts . | . . . Robots Hopped . | . . . Cave-ins Triggered . | . . . Exploration Rate (%) 26 | 4 66 8 Regions Visited 2 Branch Regions 1 Pre-discovered Areas 1 | . 1 . Known Exits Taken . | . . . Unknown Exits Taken 2 | 1 1 . Scrap Searched . | . . . Spaces Dug . | . . . Terrain Destroyed . | . . . Melee . | . . . Projectile . | . . . AOE . | . . . Terrain Rammed . | . . . Walls Destroyed . | . . . Machines Disabled . | . . . Actions | -11 -10 -10 --------- Run | Yrd Mat Min Total 834 | 58 754 22 Wait 223 | 3 220 . Move 489 | 40 440 9 Hop . | . . . Pick Up 32 | 6 26 . Fast Attach 1 | 1 . . Attach 10 | 5 4 1 Detach . | . . . Swap 7 | . 7 . Drop 5 | 1 4 . Fire 65 | 2 52 11 Melee . | . . . Ram 2 | . 1 1 Kick . | . . . Crush . | . . . Escape Stasis . | . . . Rewire . | . . . Trap . | . . . Miscellaneous . | . . . Route ------- -11/Scrapyard -10/Materials (discovered 2 exits: [*Mat] / [*Min]) -10/Mines History --------- Turn | Location | Event 14 | -11/Scrapyard | Discovered new exit (range 15) 56 | -11/Scrapyard | Entered Materials 314 | -10/Materials | Build established: Mutant 760 | -10/Materials | Discovered new exit (range 15) 867 | -10/Materials | Lost 4 parts (1n1u2w) 927 | -10/Materials | Discovered new exit (range 7) 973 | -10/Materials | Entered Mines 974 | -10/Mines | Assembled infested the area 979 | -10/Mines | Assisted by a Guerilla fighting off Assembled 987 | -10/Mines | Core integrity fell below 50% 1005 | -10/Mines | Core integrity fell below 20% 1009 | -10/Mines | Destroyed by as-78089 with Assembled Heavy Rifle Last Messages --------------- 00927_ EXIT=FOUND 00961_ Ion Engine destroyed. LOCATION=UNKNOWN GOAL=ESCAPE Something is scanning the area. 00974_ ALERT: Infestation in the mines, dispatching Demolisher response squad. 00974_ A derelict wanders into view. [Achievement: Hunted] 00978_ WY-BIG(h): "I'll hold them off! Go on ahead or try to find another way!" 00978_ as-14084 suffers critical hit (Destroy). 00978_ as-14084 destroyed. 00983_ Com. Wheel destroyed. 00983_ Slammed into as-73303. 00989_ Knocked back. 00991_ Sml. Laser destroyed. 00991_ as-73303 destroyed. 01000_ as-94609 destroyed. 01003_ Com. Wheel destroyed. Map ----- +----------------------------------------------------+ | | | | | | | | | | | | | | | | | | | | | | | | | | | | | ?????????????????????????????????????? | | ?????????????????????????????????????? | | ?????????????????????????????????????? | | ?????????????????????????????????????? | | ?????????????????????????????????????? | | ?????????????????????????????????????? | | ?????????????????????????????????????? | | ?????????????????????????????????????? | | ?????????????????????????????????????? | | ??????????????????#######????????????? | | ??????????######### ##???????????? | | ??????????# a@a a #???????????? | | ??????????#a###a##% #???????????? | | ??????????????# ## #???????????? | | ??????????????#%#% #???????????? | | ?????????????? #???????????? | | ??????????? $ #??????????? | | ????????? ##### #?????????? | | ??????? ??????## #?????????? | | ??????? ?????????# #?????????? | | ?????????????????# ##?????????? | | ????????????????? ##??????????? | | ????????????????? #???????????? | | ???????????????? ##???????????? | | ???????????????? ## ##????????????? | | ??????????????? #?? #?????????????? | | ???????????????? #??? #?????????????? | | ???????????????? #???? #?????????????? | | ?????????????????????????????????????? | | ?????????????????????????????????????? | | ?????????????????????????????????????? | | ?????????????????????????????????????? | | ?????????????????????????????????????? | | ?????????????????????????????????????? | | ?????????????????????????????????????? | | ?????????????????????????????????????? | +----------------------------------------------------+ Best States ------------- Heat Dissipation 39 Energy Generation 10 Energy Capacity 250 Matter Stores 300 Matter Capacity 300 Sight Range 16 Terrain Scan Density 10 Evasion (%) 50 Item Schematics ----------------- None Robot Schematics ------------------ None Fabricated ------------ Nothing Alien Tech Used ----------------- None Achievements -------------- Hunted Challenges ------------ None Game ------ Seed BladeSubatomicPerforator Manual? 0 Play Time 00:13:19 Cumulative 38.7 hours Start 2024.06.04 @ 19:30:27 End 2024.06.04 @ 19:43:04 Sessions 1 Manual Loads 0 Difficulty Rogue Special Mode None Game No. 66 Rogue 66 Adventurer 0 Explorer 0 Win Type - Total 0 Types 0/0/0/0/0/0/0/0/0 Lore% 22 Gallery% 30 Achievement% 27 Wizard Run 0 Options --------- Layout 0 ASCII 0 Keyboard 0 Movement Mouse Keybinds 0 Fullscreen 2 Font 18/SmallcapsGlow Map View 38x25 Zoom Use 92% Tactical HUD 1 Map Filters NONE Filters NONE Steam 1 RUN: a2b5f454-ecf8-4bfa-9058-20b35774f3e9